lending/lending_fUSD_20250114
["ID","MTS","AMOUNT","RATE_DAILY","PERIOD"]
[348871607,1736838637205,-163.98336043,9.996e-05,2]
[348871608,1736838637217,-163.98336043,9.996e-05,2]
[348871609,1736838637229,-163.98336043,9.997e-05,2]
[348871610,1736838637241,-163.98336043,9.997e-05,2]
[348871611,1736838637254,-501.66328934,9.997e-05,2]
[348871612,1736838637267,-500.0,9.997e-05,2]
[348871613,1736838637279,-500.0,9.997e-05,2]
[348871614,1736838637290,-500.0,9.997e-05,2]
[348871615,1736838637303,-500.0,9.997e-05,2]
[348871616,1736838637316,-500.0,9.997e-05,2]
[348871617,1736838637328,-500.0,9.997e-05,2]
[348871618,1736838637339,-500.0,9.997e-05,2]
[348871619,1736838637352,-500.0,9.997e-05,2]
[348871620,1736838637364,-500.0,9.997e-05,2]
[348871621,1736838637376,-500.0,9.997e-05,2]
[348871622,1736838637388,-500.0,9.997e-05,2]
[348871623,1736838637399,-500.0,9.997e-05,2]
[348871624,1736838637411,-500.0,9.997e-05,2]
[348871625,1736838637422,-500.0,9.997e-05,2]
[348871626,1736838637433,-500.0,9.997e-05,2]
[348871627,1736838637444,-500.0,9.997e-05,2]
[348871628,1736838637455,-500.0,9.997e-05,2]
[348871629,1736838637467,-500.0,9.997e-05,2]
[348871630,1736838637478,-500.0,9.997e-05,2]
[348871631,1736838637489,-501.48749568,9.997e-05,2]
[348871632,1736838637500,-500.0,9.997e-05,2]
[348871633,1736838637512,-500.0,9.997e-05,2]
[348871634,1736838637523,-500.0,9.997e-05,2]
[348871635,1736838637535,-500.0,9.997e-05,2]
[348871636,1736838637546,-500.0,9.997e-05,2]
[348871637,1736838637558,-500.0,9.997e-05,2]
[348871638,1736838637571,-501.00592784,9.997e-05,2]
[348871639,1736838637582,-503.68267927,9.997e-05,2]
[348871640,1736838637593,-500.0,9.997e-05,2]
[348871641,1736838637605,-500.98535606,9.997e-05,2]
[348871642,1736838637617,-500.0,9.997e-05,2]
[348871643,1736838637629,-500.0,9.997e-05,2]
[348871644,1736838637641,-500.0,9.997e-05,2]
[348871645,1736838637653,-500.0,9.997e-05,2]
[348871646,1736838637665,-500.0,9.997e-05,2]
[348871647,1736838637677,-500.86514017,9.997e-05,2]
[348871648,1736838637688,-500.0,9.997e-05,2]
[348871649,1736838637699,-500.0,9.997e-05,2]
[348871650,1736838637711,-500.0,9.997e-05,2]
[348871651,1736838637724,-500.0,9.997e-05,2]
[348871652,1736838637737,-500.0,9.997e-05,2]
[348871653,1736838637749,-500.0,9.997e-05,2]
[348871654,1736838637761,-500.0,9.997e-05,2]
[348871655,1736838637772,-201.15960946,9.997e-05,2]
[348871656,1736838637784,-500.0,9.997e-05,2]
[348871657,1736838637796,-500.0,9.997e-05,2]
[348871658,1736838637808,-500.0,9.997e-05,2]
[348871659,1736838637819,-500.0,9.997e-05,2]
[348871661,1736838637832,-497.54144149,9.997e-05,2]
[348871662,1736838637845,-500.0,9.997e-05,2]
[348871663,1736838637856,-500.0,9.997e-05,2]
[348871664,1736838637868,-503.45258275,9.997e-05,2]
[348871665,1736838637881,-500.0,9.997e-05,2]
[348871666,1736838637894,-500.0,9.997e-05,2]
[348871667,1736838637908,-500.0,9.997e-05,2]
[348871668,1736838637919,-500.0,9.997e-05,2]
[348871669,1736838637933,-500.0,9.997e-05,2]
[348871670,1736838637947,-500.0,9.997e-05,2]
[348871671,1736838637959,-500.0,9.997e-05,2]
[348871672,1736838638244,-500.0,9.997e-05,2]
[348871673,1736838638276,-500.0,9.997e-05,2]
[348871674,1736838638289,-500.0,9.997e-05,2]
[348871675,1736838638299,-500.0,9.997e-05,2]
[348871676,1736838638309,-500.0,9.997e-05,2]
[348871677,1736838638318,-500.0,9.997e-05,2]
[348871678,1736838638328,-502.56980573,9.997e-05,2]
[348871679,1736838638337,-500.0,9.997e-05,2]
[348871680,1736838638346,-500.0,9.997e-05,2]
[348871681,1736838638356,-500.0,9.997e-05,2]
[348871682,1736838638365,-500.0,9.997e-05,2]
[348871684,1736838638375,-500.0,9.997e-05,2]
[348871686,1736838638384,-500.0,9.997e-05,2]
[348871687,1736838638393,-500.0,9.997e-05,2]
[348871689,1736838638402,-531.17077151,9.997e-05,2]
[348871691,1736838638411,-500.0,9.997e-05,2]
[348871693,1736838638420,-500.0,9.997e-05,2]
[348871695,1736838638430,-500.0,9.997e-05,2]
[348871697,1736838638439,-500.0,9.997e-05,2]
[348871700,1736838638449,-500.0,9.997e-05,2]
[348871701,1736838638459,-500.0,9.997e-05,2]
[348871703,1736838638469,-500.0,9.997e-05,2]
[348871705,1736838638479,-500.0,9.997e-05,2]
[348871707,1736838638488,-500.0,9.997e-05,2]
[348871709,1736838638497,-500.0,9.997e-05,2]
[348871711,1736838638506,-500.0,9.997e-05,2]
[348871714,1736838638515,-500.0,9.997e-05,2]
[348871717,1736838638524,-503.15809068,9.997e-05,2]
[348871720,1736838638533,-500.0,9.997e-05,2]
[348871722,1736838638542,-500.0,9.997e-05,2]
[348871725,1736838638552,-500.0,9.997e-05,2]
[348871728,1736838638562,-500.0,9.997e-05,2]
[348871729,1736838638572,-511.55392308,9.997e-05,2]
[348871731,1736838638581,-502.07938373,9.997e-05,2]
[348871733,1736838638590,-500.0,9.997e-05,2]
[348871735,1736838638599,-500.0,9.997e-05,2]
[348871737,1736838638609,-502.70347835,9.997e-05,2]
[348871740,1736838638619,-500.0,9.997e-05,2]
[348871742,1736838638628,-500.0,9.997e-05,2]
[348871744,1736838638637,-502.98585424,9.997e-05,2]
[348871746,1736838638647,-428.22786466,9.997e-05,2]
[348871748,1736838638656,-500.0,9.997e-05,2]
[348871750,1736838638665,-500.0,9.997e-05,2]
[348871752,1736838638674,-500.0,9.997e-05,2]
[348871754,1736838638683,-504.83379701,9.997e-05,2]
[348871756,1736838638692,-514.23013043,9.997e-05,2]
[348871758,1736838638701,-500.0,9.997e-05,2]
[348871760,1736838638710,-500.0,9.997e-05,2]
[348871761,1736838638719,-292.64825371,9.997e-05,2]
[348871763,1736838638728,-500.0,9.997e-05,2]
[348871764,1736838638749,-500.0,9.997e-05,2]
[348871765,1736838638759,-500.0,9.997e-05,2]
[348871766,1736838638770,-501.44701415,9.997e-05,2]
[348871767,1736838638780,-500.0,9.997e-05,2]
[348871768,1736838638790,-500.0,9.997e-05,2]
[348871769,1736838638801,-500.0,9.997e-05,2]
[348871770,1736838638811,-500.0,9.997e-05,2]
[348871771,1736838638820,-500.0,9.997e-05,2]
[348871772,1736838638830,-570.44958384,9.997e-05,2]
[348871773,1736838638840,-500.0,9.997e-05,2]
[348871774,1736838638851,-500.0,9.997e-05,2]
[348871775,1736838638860,-500.0,9.997e-05,2]
[348871776,1736838638870,-500.0,9.997e-05,2]
[348871777,1736838638881,-1810.58,9.997e-05,2]
[348871778,1736838638891,-1810.58,9.997e-05,2]
[348871779,1736838638901,-500.0,9.997e-05,2]
[348871780,1736838638915,-500.0,9.997e-05,2]
[348871781,1736838638924,-502.56364366,9.997e-05,2]
[348871782,1736838638933,-1441.66,9.997e-05,2]
[348871783,1736838638942,-1441.66,9.997e-05,2]
[348871784,1736838638953,-500.0,9.997e-05,2]
[348871785,1736838638962,-405.62680949,9.997e-05,2]
[348871786,1736838638971,-503.85132813,9.997e-05,2]
[348871787,1736838638980,-500.0,9.997e-05,2]
[348871788,1736838638992,-151.03874766,9.997e-05,2]
[348871789,1736838639002,-503.37592142,9.997e-05,2]
[348871790,1736838639012,-500.0,9.997e-05,2]
[348871791,1736838639022,-500.0,9.997e-05,2]
[348871792,1736838639031,-500.0,9.997e-05,2]
[348871793,1736838639040,-500.0,9.997e-05,2]
[348871794,1736838639049,-500.0,9.997e-05,2]
[348871795,1736838639059,-500.0,9.997e-05,2]
[348871796,1736838639068,-500.0,9.997e-05,2]
[348871797,1736838639077,-500.0,9.997e-05,2]
[348871798,1736838639086,-504.97804674,9.997e-05,2]
[348871799,1736838639095,-500.0,9.997e-05,2]
[348871800,1736838639104,-500.0,9.997e-05,2]
[348871801,1736838639113,-500.0,9.997e-05,2]
[348871802,1736838639122,-500.0,9.997e-05,2]
[348871803,1736838639131,-500.0,9.997e-05,2]
[348871804,1736838639141,-504.16142673,9.997e-05,2]
[348871805,1736838639150,-500.0,9.997e-05,2]
[348871806,1736838639159,-500.0,9.997e-05,2]
[348871807,1736838639168,-500.0,9.997e-05,2]
[348871808,1736838639178,-500.0,9.997e-05,2]
[348871809,1736838639187,-504.03504514,9.997e-05,2]
[348871810,1736838639196,-500.0,9.997e-05,2]
[348871811,1736838639205,-547.3,9.997e-05,2]
[348871812,1736838639214,-500.0,9.997e-05,2]
[348871813,1736838639224,-500.0,9.997e-05,2]
[348871814,1736838639233,-610.47,9.997e-05,2]
[348871815,1736838639242,-1988.84,9.997e-05,2]
[348871816,1736838639252,-501.88782072,9.997e-05,2]
[348871817,1736838639261,-500.0,9.997e-05,2]
[348871818,1736838639270,-500.0,9.997e-05,2]
[348871819,1736838639280,-500.0,9.997e-05,2]
[348871820,1736838639290,-500.0,9.997e-05,2]
[348871821,1736838639299,-762.5,9.997e-05,2]
[348871822,1736838639309,-500.0,9.997e-05,2]
[348871823,1736838639318,-3466.13,9.997e-05,2]
[348871824,1736838639328,-500.0,9.997e-05,2]
[348871825,1736838639337,-500.0,9.997e-05,2]
[348871826,1736838639347,-500.0,9.997e-05,2]
[348871827,1736838639358,-500.0,9.997e-05,2]
[348871828,1736838639367,-500.0,9.997e-05,2]
[348871829,1736838639376,-500.0,9.997e-05,2]
[348871830,1736838639386,-8200.06,9.997e-05,2]
[348871831,1736838639395,-520.09,9.997e-05,2]
[348871832,1736838639404,-500.0,9.997e-05,2]
[348871833,1736838639414,-500.0,9.997e-05,2]
[348871834,1736838639422,-535.42938821,9.997e-05,2]
[348871835,1736838639433,-500.0,9.997e-05,2]
[348871836,1736838639442,-500.0,9.997e-05,2]
[348871837,1736838639452,-501.40623838,9.997e-05,2]
[348871838,1736838639461,-500.0,9.997e-05,2]
[348871839,1736838639470,-500.0,9.997e-05,2]
[348871840,1736838639480,-500.0,9.997e-05,2]
[348871841,1736838639489,-500.0,9.997e-05,2]
[348871842,1736838639498,-500.0,9.997e-05,2]
[348871843,1736838639508,-500.0,9.997e-05,2]
[348871844,1736838639517,-500.0,9.997e-05,2]
[348871845,1736838639526,-500.0,9.997e-05,2]
[348871846,1736838639535,-500.0,9.997e-05,2]
[348871847,1736838639545,-500.0,9.997e-05,2]
[348871848,1736838639554,-500.0,9.997e-05,2]
[348871849,1736838639564,-500.0,9.997e-05,2]
[348871850,1736838639573,-500.0,9.997e-05,2]
[348871851,1736838639582,-500.0,9.997e-05,2]
[348871852,1736838639593,-500.0,9.997e-05,2]
[348871853,1736838639603,-500.0,9.997e-05,2]
[348871854,1736838639613,-500.0,9.997e-05,2]
[348871855,1736838639622,-500.0,9.997e-05,2]
[348871856,1736838639632,-500.0,9.997e-05,2]
[348871857,1736838639642,-694.69,9.997e-05,2]
[348871858,1736838639651,-500.0,9.997e-05,2]
[348871859,1736838639661,-753.97,9.997e-05,2]
[348871860,1736838639670,-500.0,9.997e-05,2]
[348871861,1736838639679,-901.76,9.997e-05,2]
[348871862,1736838639689,-2452.13,9.997e-05,2]
[348871863,1736838639698,-500.0,9.997e-05,2]
[348871864,1736838639709,-500.0,9.997e-05,2]
[348871865,1736838639719,-500.0,9.997e-05,2]
[348871866,1736838639728,-500.0,9.997e-05,2]
[348871867,1736838639738,-500.0,9.997e-05,2]
[348871868,1736838639747,-500.0,9.997e-05,2]
[348871869,1736838639757,-500.0,9.997e-05,2]
[348871870,1736838639766,-675.32,9.997e-05,2]
[348871871,1736838639776,-500.0,9.997e-05,2]
[348871872,1736838639785,-500.0,9.997e-05,2]
[348871873,1736838639794,-500.0,9.997e-05,2]
[348871874,1736838639803,-663.33,9.997e-05,2]
[348871875,1736838639813,-500.0,9.997e-05,2]
[348871876,1736838639822,-500.0,9.997e-05,2]
[348871877,1736838639832,-926.57,9.997e-05,2]
[348871878,1736838639841,-3617.25,9.997e-05,2]
[348871879,1736838639851,-860.4,9.997e-05,2]
[348871880,1736838639860,-666.12,9.997e-05,2]
[348871881,1736838639870,-1607.29,9.997e-05,2]
[348871882,1736838639879,-415.70310438,9.997e-05,2]
[348871883,1736838639888,-500.0,9.997e-05,2]
[348871884,1736838639898,-500.0,9.997e-05,2]
[348871885,1736838639910,-500.0,9.997e-05,2]
[348871886,1736838639920,-500.0,9.997e-05,2]
[348871887,1736838639929,-500.0,9.997e-05,2]
[348871888,1736838639938,-500.0,9.997e-05,2]
[348871889,1736838639948,-500.0,9.997e-05,2]
[348871890,1736838639957,-500.0,9.997e-05,2]
[348871891,1736838639966,-500.0,9.997e-05,2]
[348871892,1736838639975,-500.0,9.997e-05,2]
[348871893,1736838639986,-3960.24,9.997e-05,2]
[348871894,1736838639996,-500.0,9.997e-05,2]
[348871895,1736838640005,-500.0,9.997e-05,2]
[348871896,1736838640015,-500.0,9.997e-05,2]
[348871897,1736838640024,-500.0,9.997e-05,2]
[348871898,1736838640034,-1000.0,9.997e-05,2]
[348871899,1736838640043,-500.0,9.997e-05,2]
[348871900,1736838640055,-879.22,9.997e-05,2]
[348871901,1736838640064,-645.3,9.997e-05,2]
[348871902,1736838640075,-500.0,9.997e-05,2]
[348871903,1736838640084,-500.0,9.997e-05,2]
[348871904,1736838640094,-500.0,9.997e-05,2]
[348871905,1736838640104,-2043.1,9.997e-05,2]
[348871906,1736838640114,-500.0,9.997e-05,2]
[348871907,1736838640123,-500.0,9.997e-05,2]
[348871908,1736838640133,-592.38,9.997e-05,2]
[348871909,1736838640144,-500.0,9.997e-05,2]
[348871910,1736838640153,-1871.32,9.997e-05,2]
[348871911,1736838640162,-923.05,9.997e-05,2]
[348871912,1736838640172,-500.0,9.997e-05,2]
[348871913,1736838640181,-621.9,9.997e-05,2]
[348871914,1736838640191,-500.0,9.997e-05,2]
[348871915,1736838640200,-163.98336043,9.997e-05,2]
[348871916,1736838640209,-163.98336043,9.997e-05,2]
[348871917,1736838640218,-163.98336043,9.997e-05,2]
[348871918,1736838640227,-163.98336043,9.998e-05,2]
[348871919,1736838640237,-163.98336043,9.998e-05,2]
[348871920,1736838640246,-1033.343,9.998e-05,2]
[348871921,1736838640255,-615.9,9.998e-05,2]
[348871922,1736838640264,-551.3,9.998e-05,2]
[348871923,1736838640274,-500.0,9.998e-05,2]
[348871924,1736838640284,-803.32,9.998e-05,2]
[348871925,1736838640294,-500.0,9.998e-05,2]
[348871926,1736838640304,-500.0,9.998e-05,2]
[348871927,1736838640313,-500.0,9.998e-05,2]
[348871928,1736838640323,-1007.53,9.998e-05,2]
[348871929,1736838640333,-500.0,9.998e-05,2]
[348871930,1736838640342,-892.26,9.998e-05,2]
[348871931,1736838640354,-500.0,9.998e-05,2]
[348871932,1736838640364,-952.79,9.998e-05,2]
[348871933,1736838640374,-500.0,9.998e-05,2]
[348871934,1736838640383,-500.0,9.998e-05,2]
[348871935,1736838640393,-500.0,9.998e-05,2]
[348871936,1736838640403,-574.38,9.998e-05,2]
[348871937,1736838640414,-507.7432834,9.998e-05,2]
[348871938,1736838640424,-500.0,9.998e-05,2]
[348871939,1736838640435,-500.0,9.998e-05,2]
[348871940,1736838640445,-500.0,9.998e-05,2]
[348871941,1736838640457,-163.98336043,9.998e-05,2]
[348871942,1736838640466,-163.98336043,9.998e-05,2]
[348871943,1736838640475,-163.98336043,9.999e-05,2]
[348871944,1736838640485,-163.98336043,9.999e-05,2]
[348871945,1736838640494,-163.98336043,9.999e-05,2]
[348871946,1736838640504,-500.0,9.999e-05,2]
[348871947,1736838640515,-1149.59,9.999e-05,2]
[348871948,1736838640526,-982.82,9.999e-05,2]
[348871949,1736838640535,-1590.52,9.999e-05,2]
[348871950,1736838640545,-151.0,9.999e-05,2]
[348871951,1736838640556,-151.0,9.999e-05,2]
[348871952,1736838640566,-1653.87,9.999e-05,2]
[348871954,1736838640576,-2017.25,9.999e-05,2]
[348871955,1736838640586,-500.0,9.999e-05,2]
[348871956,1736838640595,-1550.16,9.999e-05,2]
[348871957,1736838640605,-4064.08,9.999e-05,2]
[348871958,1736838640614,-1716.52,9.999e-05,2]
[348871959,1736838640624,-3286.04,9.999e-05,2]
[348871960,1736838640633,-1489.27,9.999e-05,2]
[348871961,1736838640643,-1728.18,9.999e-05,2]
[348871962,1736838640653,-500.0,9.999e-05,2]
[348871963,1736838640662,-3325.56,9.999e-05,2]
[348871964,1736838640673,-835.12,9.999e-05,2]
[348871965,1736838640682,-1881.0,9.999e-05,2]
[348871966,1736838640692,-862.34,9.999e-05,2]
[348871968,1736838640701,-3167.44,9.999e-05,2]
[348871970,1736838640711,-2562.91,9.999e-05,2]
[348871971,1736838640721,-894.73,9.999e-05,2]
[348871972,1736838640730,-894.73,9.999e-05,2]
[348871973,1736838640740,-760.21,9.999e-05,2]
[348871974,1736838640751,-1374.98,9.999e-05,2]
[348871975,1736838640763,-500.0,9.999e-05,2]
[348871976,1736838640773,-1098.02,9.999e-05,2]
[348871977,1736838640784,-797.07,9.999e-05,2]
[348871978,1736838640794,-1044.7,9.999e-05,2]
[348871979,1736838640806,-612.06,9.999e-05,2]
[348871980,1736838640817,-3338.59,9.999e-05,2]
[348871981,1736838640826,-1389.01,9.999e-05,2]
[348871982,1736838640835,-2022.0,9.999e-05,2]
[348871983,1736838640845,-800.43,9.999e-05,2]
[348871984,1736838640855,-4041.03,9.999e-05,2]
[348871985,1736838640865,-500.0,9.999e-05,2]
[348871986,1736838640876,-163.98336043,9.999e-05,2]
[348871987,1736838640886,-163.98336043,9.999e-05,2]
[348871988,1736838640895,-163.98336043,0.0001,2]
[348871989,1736838640905,-163.98336043,0.0001,2]
[348871990,1736838640917,-34671.37671073,0.0001,2]
[348871991,1736838641981,-500.0,9.996e-05,2]
[348871992,1736838641992,-9076.47302326,0.0001,2]
[348871993,1736838642015,-914.94104856,0.0001,2]
[348871994,1736838642027,-301045.93687675,0.0001,2]
[348871995,1736838642038,-427826.59614029,0.0001,2]
[348871996,1736838642301,-500.0,9.996e-05,2]
[348871997,1736838642311,-500.0,9.996e-05,2]
[348871998,1736838642321,-500.0,9.997e-05,2]
[348871999,1736838642331,-3284.46486953,0.0001,2]
[348872000,1736838642343,-318.6,0.0001,2]
[348872001,1736838642395,-1224.55159166,0.0001,2]
[348872002,1736838642407,-15461.76444035,0.0001,2]
[348872003,1736838642419,-385.84700458,0.0001,2]
[348872004,1736838642432,-4284.08219739,0.0001,2]
[348872005,1736838642444,-836.94878874,0.0001,2]
[348872006,1736838642456,-5091.82413923,0.0001,2]
[348872007,1736838642467,-2610.97439795,0.0001,2]
[348872008,1736838642478,-466.5999998,0.0001,2]
[348872009,1736838642490,-4494.60350419,0.0001,2]
[348872010,1736838642501,-370.605,0.0001,2]
[348872011,1736838642513,-255.663,0.0001,2]
[348872012,1736838642524,-569.83961112,0.0001,2]
[348872032,1736838643116,-642.31,9.997e-05,2]
[348872034,1736838643126,-9206.85828037,0.0001,2]
[348872036,1736838643138,-435.64141315,0.0001,2]
[348872037,1736838643150,-978.79830355,0.0001,2]
[348872038,1736838643162,-939.00831506,0.0001,2]
[348872039,1736838643174,-8847.32969744,0.0001,2]
[348872040,1736838643185,-5363.82640682,0.0001,2]
[348872041,1736838643392,-698.84025404,0.0001,2]
[348872042,1736838643404,-935.75418787,0.0001,2]
[348872043,1736838643416,-6744.95368379,0.0001,2]
[348872044,1736838643427,-6806.8384954,0.0001,2]
[348872046,1736838646154,-500.0,9.995e-05,2]
[348872047,1736838646164,-204.9042855,9.996e-05,2]
[348872048,1736838646175,-295.0957145,9.996e-05,2]
[348872049,1736838646185,-593.99484072,9.996e-05,2]
[348872050,1736838646194,-252.31816648,0.0001,2]
[348872051,1736838646205,-47110.70369791,0.0001,2]
[348872052,1736838646215,-48029.2135,0.0001,2]
[348872053,1736838646226,-43407.35718643,0.0001,2]
[348872054,1736838646238,-626.8265502,0.0001,2]
[348872055,1736838646249,-132117.94761778,0.0001,2]
[348872056,1736838646258,-15256.66732445,0.0001,2]
[348872057,1736838646269,-9985.0,0.0001,2]
[348872058,1736838646280,-383.5086327,0.0001,2]
[348872059,1736838646311,-39487.17226742,0.0001,2]
[348872060,1736838646442,-500.0,9.995e-05,2]
[348872061,1736838646452,-200877.15030259,0.0001,2]
[348872063,1736838791925,2000.0,0.00022667,120]
[348872065,1736838981553,9313.26628501,0.0002,30]
[348872067,1736839025595,75000.0,0.0002,30]
[348872068,1736839443615,958.77,8.219e-05,2]
[348872085,1736839673673,1542.48,0.00023,120]
[348872111,1736839832253,-209.41,9.101e-05,2]
[348872112,1736839832262,-163.53,9.11e-05,2]
[348872115,1736839832377,-836.47,9.11e-05,2]
[348872116,1736839832387,-250.0,9.113e-05,2]
[348872117,1736839832396,-497.96,9.122e-05,2]
[348872118,1736839832405,-156.645,9.5e-05,2]
[348872119,1736839832415,-440.156,9.973e-05,2]
[348872120,1736839832426,-150.0,9.98e-05,2]
[348872121,1736839832435,-150.0,9.98e-05,2]
[348872122,1736839832445,-163.2864146,9.992e-05,2]
[348872123,1736839832454,-163.2864146,9.993e-05,2]
[348872124,1736839832464,-1571.94128903,9.994e-05,2]
[348872125,1736839832474,-150.0,9.994e-05,2]
[348872126,1736839832486,-914.288873,9.995e-05,2]
[348872127,1736839832495,-500.0,9.995e-05,2]
[348872128,1736839832504,-500.0,9.995e-05,2]
[348872129,1736839832513,-4048.04,9.995e-05,2]
[348872130,1736839832523,-1211.07,9.995e-05,2]
[348872131,1736839832532,-500.0,9.995e-05,2]
[348872132,1736839832543,-500.0,9.995e-05,2]
[348872133,1736839832552,-3971.92,9.995e-05,2]
[348872134,1736839832561,-500.0,9.995e-05,2]
[348872135,1736839832571,-500.0,9.995e-05,2]
[348872136,1736839832580,-500.0,9.995e-05,2]
[348872137,1736839832589,-500.0,9.995e-05,2]
[348872138,1736839832599,-500.0,9.995e-05,2]
[348872139,1736839832608,-500.0,9.995e-05,2]
[348872140,1736839832617,-500.0,9.995e-05,2]
[348872141,1736839832626,-500.0,9.995e-05,2]
[348872142,1736839832635,-500.0,9.995e-05,2]
[348872143,1736839832644,-500.0,9.995e-05,2]
[348872144,1736839832653,-500.0,9.995e-05,2]
[348872145,1736839832662,-500.0,9.995e-05,2]
[348872146,1736839832671,-500.0,9.995e-05,2]
[348872147,1736839832680,-619.1,9.995e-05,2]
[348872148,1736839832689,-744.07,9.995e-05,2]
[348872149,1736839832698,-500.0,9.995e-05,2]
[348872150,1736839832707,-500.0,9.995e-05,2]
[348872151,1736839832716,-757.36,9.995e-05,2]
[348872152,1736839832725,-500.0,9.995e-05,2]
[348872153,1736839832734,-556.13,9.995e-05,2]
[348872154,1736839832743,-500.0,9.995e-05,2]
[348872155,1736839832752,-500.0,9.995e-05,2]
[348872156,1736839832761,-528.05,9.995e-05,2]
[348872157,1736839832770,-500.0,9.995e-05,2]
[348872158,1736839832779,-500.0,9.995e-05,2]
[348872159,1736839832788,-500.0,9.995e-05,2]
[348872160,1736839832797,-500.0,9.995e-05,2]
[348872161,1736839832806,-500.0,9.995e-05,2]
[348872162,1736839832818,-500.0,9.995e-05,2]
[348872163,1736839832829,-500.0,9.995e-05,2]
[348872164,1736839832839,-1407.49,9.995e-05,2]
[348872165,1736839832850,-500.0,9.995e-05,2]
[348872166,1736839832861,-500.0,9.995e-05,2]
[348872167,1736839832870,-500.0,9.995e-05,2]
[348872168,1736839832879,-1802.99,9.995e-05,2]
[348872169,1736839832889,-500.0,9.995e-05,2]
[348872170,1736839832898,-500.0,9.995e-05,2]
[348872171,1736839832907,-500.0,9.995e-05,2]
[348872172,1736839832916,-500.0,9.995e-05,2]
[348872173,1736839832925,-2510.18,9.995e-05,2]
[348872174,1736839832934,-500.0,9.995e-05,2]
[348872175,1736839832943,-665.74,9.995e-05,2]
[348872176,1736839832951,-864.18,9.995e-05,2]
[348872177,1736839832960,-500.0,9.995e-05,2]
[348872178,1736839832970,-1354.94,9.995e-05,2]
[348872179,1736839832978,-604.49716216,9.995e-05,2]
[348872180,1736839832987,-500.0,9.995e-05,2]
[348872181,1736839832996,-500.0,9.995e-05,2]
[348872182,1736839833005,-500.0,9.995e-05,2]
[348872183,1736839833014,-500.0,9.995e-05,2]
[348872184,1736839833024,-500.0,9.995e-05,2]
[348872185,1736839833033,-500.0,9.995e-05,2]
[348872186,1736839833043,-500.0,9.995e-05,2]
[348872187,1736839833052,-500.0,9.995e-05,2]
[348872188,1736839833062,-826.66,9.995e-05,2]
[348872189,1736839833071,-500.0,9.995e-05,2]
[348872190,1736839833080,-500.0,9.995e-05,2]
[348872191,1736839833089,-929.51,9.995e-05,2]
[348872192,1736839833098,-3287.01,9.995e-05,2]
[348872193,1736839833107,-865.05,9.995e-05,2]
[348872194,1736839833117,-500.0,9.995e-05,2]
[348872195,1736839833126,-500.0,9.995e-05,2]
[348872196,1736839833135,-500.0,9.995e-05,2]
[348872197,1736839833144,-1987.12,9.995e-05,2]
[348872198,1736839833153,-1063.05,9.995e-05,2]
[348872199,1736839833163,-676.87,9.995e-05,2]
[348872200,1736839833172,-500.0,9.995e-05,2]
[348872201,1736839833182,-500.0,9.995e-05,2]
[348872202,1736839833192,-3977.73,9.995e-05,2]
[348872203,1736839833201,-500.0,9.995e-05,2]
[348872204,1736839833211,-638.37,9.995e-05,2]
[348872205,1736839833221,-500.0,9.995e-05,2]
[348872206,1736839833230,-645.12,9.995e-05,2]
[348872207,1736839833240,-3604.13,9.995e-05,2]
[348872208,1736839833250,-500.0,9.995e-05,2]
[348872209,1736839833259,-500.0,9.995e-05,2]
[348872210,1736839833268,-500.0,9.995e-05,2]
[348872211,1736839833278,-500.0,9.995e-05,2]
[348872212,1736839833289,-500.0,9.995e-05,2]
[348872213,1736839833300,-2379.99,9.995e-05,2]
[348872214,1736839833309,-500.0,9.995e-05,2]
[348872215,1736839833319,-500.0,9.995e-05,2]
[348872216,1736839833328,-597.99,9.995e-05,2]
[348872217,1736839833338,-3877.95165065,9.995e-05,2]
[348872218,1736839833401,-28.16834935,9.995e-05,2]
[348872219,1736839833411,-500.0,9.995e-05,2]
[348872220,1736839833420,-1037.3476538,9.995e-05,2]